fUSD/lending_fUSD_20260508
["ID","MTS","AMOUNT","RATE_DAILY","PERIOD"]
[421852136,1778225452000,-1000.0,0.00035616,10]
[421852139,1778225452000,-361.51924495,0.00035617,7]
[421852156,1778225452000,-158.0,0.00036056,30]
[421852146,1778225452000,-500.0,0.00035797,3]
[421852145,1778225452000,-500.0,0.00035797,3]
[421852143,1778225452000,-500.0,0.00035797,3]
[421852147,1778225452000,-500.0,0.00035797,3]
[421852144,1778225452000,-500.0,0.00035797,3]
[421852152,1778225452000,-243.0,0.00036055,30]
[421852149,1778225452000,-253.46307035,0.00036,120]
[421852151,1778225452000,-160.0,0.00036,60]
[421852153,1778225452000,-495.0,0.00036055,30]
[421852150,1778225452000,-25031.60281494,0.00036,2]
[421852154,1778225452000,-168.8662388,0.00036055,30]
[421852155,1778225452000,-153.0,0.00036056,30]
[421852148,1778225452000,-3396.51426329,0.000359,120]
[421852186,1778225453000,457.9152289,0.00030136,120]
[421852184,1778225453000,-176.04,0.00012329,2]
[421852188,1778225453000,-2351.20406109,0.00014467,2]
[421852187,1778225453000,-296.82102635,0.00014467,2]
[421852185,1778225453000,-68405.87747912,0.00037025,2]
[421852191,1778225519000,-1352.0,0.00014157,2]
[421852208,1778225587000,-1130.3734909,0.00014157,2]
[421852207,1778225587000,-221.6265091,0.00013699,2]
[421852205,1778225587000,-213.986,0.00014157,2]
[421852206,1778225587000,-1138.014,0.00014157,2]
[421852203,1778225587000,-1148.986,0.00014157,2]
[421852204,1778225587000,-203.014,0.00014157,2]
[421852202,1778225587000,-1352.0,0.00014157,2]
[421852200,1778225587000,-300.0,0.00014155,2]
[421852201,1778225587000,-1052.0,0.00014157,2]
[421852210,1778225588000,-300.0,0.00014157,2]
[421852209,1778225588000,-300.0,0.00014157,2]
[421852212,1778225588000,-300.0,0.00014157,2]
[421852211,1778225588000,-300.0,0.00014157,2]
[421852215,1778225589000,-300.0,0.00014157,2]
[421852214,1778225589000,-142.3874909,0.00014157,2]
[421852213,1778225589000,-157.6125091,0.00014157,2]
[421852218,1778225695000,-486.6125091,0.00014157,2]
[421852223,1778225750000,-194.04431955,0.00014312,2]
[421852222,1778225750000,-20.6371203,0.00014312,2]
[421852221,1778225750000,-214.68143985,0.00014312,2]
[421852220,1778225750000,-64.68143985,0.00014312,2]
[421852219,1778225750000,-150.0,0.00014296,2]
[421852226,1778225751000,-12.29918535,0.00014341,2]
[421852225,1778225751000,-202.3822545,0.00014312,2]
[421852224,1778225751000,-214.68143985,0.00014312,2]
[421852235,1778226398000,-250.0,0.00014,2]
[421852236,1778226398000,-300.0,0.00014025,2]
[421852239,1778226398000,-4.71058072,0.00014122,2]
[421852237,1778226398000,-250.0,0.0001405,2]
[421852238,1778226398000,-300.0,0.00014122,2]
[421852251,1778226634000,-121.83053423,0.00014586,2]
[421852255,1778226634000,-2726.52883703,0.00014901,2]
[421852257,1778226634000,-271.17317545,0.00014901,2]
[421852256,1778226634000,-1403.85738872,0.00014901,2]
[421852254,1778226634000,-3840.64011685,0.00014901,2]
[421852253,1778226634000,-299.99,0.00014587,2]
[421852252,1778226634000,-1078.16946577,0.00014586,2]
[421852250,1778226634000,-300.0,0.00014586,2]
[421852249,1778226634000,-150.0,0.00014422,2]
[421852248,1778226634000,-150.0,0.0001428,2]
[421852247,1778226634000,-250.0,0.00014131,2]
[421852246,1778226634000,-295.28941928,0.00014122,2]
[421852258,1778226635000,-1214.72900572,0.00014901,2]
[421852260,1778226635000,-530.57794545,0.00014901,2]
[421852262,1778226635000,-2002.04656949,0.00014901,2]
[421852259,1778226635000,-478.1525041,0.00014901,2]
[421852261,1778226635000,-1643.30202677,0.00014901,2]
[421852271,1778226638000,-12399.66713042,0.00014901,2]
[421852272,1778226638000,-173.03748202,0.00014926,2]
[421852285,1778226639000,-417.0,0.00015001,2]
[421852283,1778226639000,-1352.0,0.00015001,2]
[421852282,1778226639000,-3538.0,0.00015001,2]
[421852281,1778226639000,-173.0,0.00015,2]
[421852280,1778226639000,-500.0,0.00014954,2]
[421852279,1778226639000,-500.0,0.00014954,2]
[421852276,1778226639000,-8198.65,0.00014953,2]
[421852275,1778226639000,-1576.76,0.00014953,2]
[421852278,1778226639000,-501.24189044,0.00014954,2]
[421852274,1778226639000,-150.99,0.00014953,2]
[421852277,1778226639000,-500.0,0.00014954,2]
[421852273,1778226639000,-150.0,0.00014953,2]
[421852284,1778226639000,-219.0,0.00015001,2]
[421852286,1778226639000,-3626.0,0.00015001,2]
[421852287,1778226639000,-214.68143985,0.00015266,2]
[421852299,1778226639000,-152.64493428,0.00015535,2]
[421852302,1778226639000,-650.24869359,0.00016045,2]
[421852300,1778226639000,-420.0,0.0001597,2]
[421852301,1778226639000,-988.74840591,0.00016045,2]
[421852297,1778226639000,-250.0,0.00015535,2]
[421852296,1778226639000,-600.0,0.000154,2]
[421852298,1778226639000,-250.0,0.00015535,2]
[421852294,1778226639000,-300.0,0.000154,2]
[421852290,1778226639000,-945.82871504,0.00015394,2]
[421852288,1778226639000,-1000.0,0.00015393,2]
[421852289,1778226639000,-5180.26406928,0.00015394,2]
[421852293,1778226639000,-1456.35115128,0.00015394,2]
[421852317,1778226640000,-250.0,0.0001866,2]
[421852323,1778226640000,-222.0,0.0002,2]
[421852324,1778226640000,-182.0,0.0002,2]
[421852330,1778226640000,-515.44243355,0.00020744,2]
[421852320,1778226640000,-500.0,0.00019851,2]
[421852315,1778226640000,-3626.0,0.00018001,2]
[421852312,1778226640000,-3538.0,0.00018001,2]
[421852316,1778226640000,-150.0,0.000181,7]
[421852307,1778226640000,-2174.11749862,0.00017094,2]
[421852313,1778226640000,-1352.0,0.00018001,2]
[421852310,1778226640000,-2351.0,0.00017649,2]
[421852311,1778226640000,-425.75013617,0.00017911,2]
[421852309,1778226640000,-300.0,0.00017486,2]
[421852326,1778226640000,-1048.24,0.00020319,2]
[421852308,1778226640000,-237.22075126,0.00017173,2]
[421852306,1778226640000,-321.92,0.000164,2]
[421852304,1778226640000,-41.0029005,0.00016045,2]
[421852305,1778226640000,-255.0,0.00016074,2]
[421852314,1778226640000,-417.0,0.00018001,2]
[421852321,1778226640000,-515.44243355,0.00019851,2]
[421852318,1778226640000,-2449.0,0.00019414,2]
[421852322,1778226640000,-515.44243355,0.00019866,2]
[421852319,1778226640000,-515.44243355,0.00019799,2]
[421852344,1778226640000,-150.0,0.00022933,2]
[421852345,1778226640000,-222.0,0.00023,2]
[421852342,1778226640000,-158.61,0.000224,14]
[421852333,1778226640000,-1034.15,0.00021001,2]
[421852339,1778226640000,-157.07,0.00022108,2]
[421852341,1778226640000,-166.66,0.00022199,30]
[421852340,1778226640000,-2000.0,0.00022128,2]
[421852338,1778226640000,-182.0,0.00022,2]
[421852343,1778226640000,-166.66,0.00022657,30]
[421852337,1778226640000,-222.0,0.00022,2]
[421852335,1778226640000,-3626.0,0.00021001,2]
[421852334,1778226640000,-417.0,0.00021001,2]
[421852332,1778226640000,-182.0,0.00021,2]
[421852331,1778226640000,-222.0,0.00021,2]
[421852328,1778226640000,-515.44243355,0.00020597,2]
[421852329,1778226640000,-515.44243355,0.00020627,2]
[421852327,1778226640000,-515.44243355,0.00020407,2]
[421852336,1778226640000,-166.66,0.00021741,2]
[421852325,1778226640000,-515.44243355,0.00020263,2]
[421852404,1778226641000,-500.0,0.00027396,2]
[421852386,1778226641000,-157.41,0.00025875,7]
[421852387,1778226641000,-156.22,0.00025875,7]
[421852385,1778226641000,-1578.83,0.00025786,2]
[421852377,1778226641000,-630.0,0.00025132,10]
[421852380,1778226641000,-5000.0,0.00025304,2]
[421852382,1778226641000,-156.22,0.00025571,2]
[421852378,1778226641000,-157.41,0.00025266,30]
[421852379,1778226641000,-156.22,0.00025266,30]
[421852384,1778226641000,-599.62,0.00025786,2]
[421852383,1778226641000,-792.82,0.00025786,2]
[421852390,1778226641000,-1177.0,0.00027,2]
[421852398,1778226641000,-500.0,0.00027396,2]
[421852392,1778226641000,-754.146,0.00027001,2]
[421852391,1778226641000,-417.0,0.00027001,2]
[421852389,1778226641000,-877.0,0.00027,2]
[421852393,1778226641000,-504.0,0.00027137,2]
[421852394,1778226641000,-503.0,0.00027137,2]
[421852395,1778226641000,-1749.31042732,0.00027297,2]
[421852396,1778226641000,-500.0,0.00027396,2]
[421852400,1778226641000,-500.0,0.00027396,2]
[421852381,1778226641000,-157.41,0.00025571,2]
[421852397,1778226641000,-500.0,0.00027396,2]
[421852399,1778226641000,-500.0,0.00027396,2]
[421852401,1778226641000,-500.0,0.00027396,2]
[421852402,1778226641000,-500.0,0.00027396,2]
[421852388,1778226641000,-151.0,0.00026296,2]
[421852376,1778226641000,-519.0,0.00025132,10]
[421852365,1778226641000,-1000.0,0.00024658,2]
[421852375,1778226641000,-699.0,0.00025132,10]
[421852347,1778226641000,-1056.25,0.0002302,2]
[421852350,1778226641000,-2500.0,0.00023611,2]
[421852349,1778226641000,-166.66,0.00023572,30]
[421852357,1778226641000,-792.82,0.00024174,2]
[421852346,1778226641000,-182.0,0.00023,2]
[421852348,1778226641000,-166.66,0.00023115,30]
[421852352,1778226641000,-222.0,0.00024,2]
[421852355,1778226641000,-3626.0,0.00024001,2]
[421852356,1778226641000,-166.66,0.0002403,30]
[421852351,1778226641000,-200.0,0.00023837,2]
[421852354,1778226641000,-417.0,0.00024001,2]
[421852353,1778226641000,-182.0,0.00024,2]
[421852358,1778226641000,-599.62,0.00024174,2]
[421852360,1778226641000,-151.0,0.00024324,2]
[421852370,1778226641000,-2000.0,0.00024894,2]
[421852359,1778226641000,-1578.83,0.00024174,2]
[421852363,1778226641000,-45004.5475,0.00024558,2]
[421852362,1778226641000,-4164.7728,0.00024558,2]
[421852361,1778226641000,-4568.2915,0.00024558,2]
[421852369,1778226641000,-154.63,0.00024778,2]
[421852364,1778226641000,-200.0,0.00024592,2]
[421852367,1778226641000,-157.41,0.00024658,2]
[421852366,1778226641000,-180.51,0.00024658,2]
[421852368,1778226641000,-156.22,0.00024658,2]
[421852371,1778226641000,-157.41,0.00024962,7]
[421852373,1778226641000,-237.0,0.00025,2]
[421852372,1778226641000,-156.22,0.00024962,7]
[421852374,1778226641000,-187.0,0.00025,2]
[421852412,1778226641000,-500.0,0.00027396,2]
[421852424,1778226641000,-153.37,0.0002863,2]
[421852406,1778226641000,-500.0,0.00027396,2]
[421852444,1778226641000,-152.21,0.00029082,2]
[421852454,1778226641000,-417.0,0.00030001,2]
[421852455,1778226641000,-151.0,0.00030239,2]
[421852453,1778226641000,-504.0,0.0002978,4]
[421852446,1778226641000,-152.21,0.00029132,7]
[421852451,1778226641000,-150.0,0.00029534,2]
[421852449,1778226641000,-153.46,0.00029232,2]
[421852448,1778226641000,-152.21,0.00029182,30]
[421852447,1778226641000,-153.37,0.00029182,30]
[421852443,1778226641000,-153.37,0.00029082,2]
[421852450,1778226641000,-152.32,0.00029232,2]
[421852452,1778226641000,-1749.31042724,0.00029653,2]
[421852445,1778226641000,-153.37,0.00029132,7]
[421852456,1778226641000,-231.44748834,0.00030243,5]
[421852458,1778226641000,-206.681,0.000303,25]
[421852468,1778226641000,-153.0,0.00031099,30]
[421852457,1778226641000,-1040.719,0.000303,25]
[421852460,1778226641000,-504.0,0.00030661,5]
[421852459,1778226641000,-2000.0,0.00030426,2]
[421852461,1778226641000,-1749.31042724,0.00030831,2]
[421852462,1778226641000,-700.0,0.00031011,5]
[421852467,1778226641000,-161.8662388,0.00031099,30]
[421852465,1778226641000,-156.0,0.00031099,30]
[421852466,1778226641000,-222.0,0.00031099,30]
[421852463,1778226641000,-150.0,0.00031011,2]
[421852464,1778226641000,-167.11776604,0.00031099,30]
[421852410,1778226641000,-500.0,0.00027396,2]
[421852440,1778226641000,-152.21,0.00028981,7]
[421852434,1778226641000,-153.37,0.00028881,30]
[421852439,1778226641000,-153.37,0.00028981,7]
[421852436,1778226641000,-504.0,0.00028899,3]
[421852407,1778226641000,-500.0,0.00027396,2]
[421852441,1778226641000,-153.37,0.00029031,30]
[421852403,1778226641000,-500.0,0.00027396,2]
[421852405,1778226641000,-500.0,0.00027396,2]
[421852408,1778226641000,-413.34140228,0.00027396,2]
[421852414,1778226641000,-500.0,0.00027396,2]
[421852415,1778226641000,-207.99170503,0.00027397,10]
[421852417,1778226641000,-25237.11,0.00027397,10]
[421852416,1778226641000,-1138.01237382,0.00027397,2]
[421852418,1778226641000,-2000.0,0.0002766,2]
[421852429,1778226641000,-152.21,0.0002873,30]
[421852421,1778226641000,-151.0,0.00028267,2]
[421852420,1778226641000,-504.0,0.00028018,2]
[421852422,1778226641000,-1048.24,0.00028446,2]
[421852419,1778226641000,-500.0,0.000278,7]
[421852425,1778226641000,-152.21,0.0002863,2]
[421852435,1778226641000,-152.21,0.00028881,30]
[421852427,1778226641000,-152.21,0.0002868,7]
[421852433,1778226641000,-152.21,0.0002883,7]
[421852437,1778226641000,-153.37,0.00028931,2]
[421852431,1778226641000,-152.21,0.0002878,2]
[421852442,1778226641000,-152.21,0.00029031,30]
[421852438,1778226641000,-152.21,0.00028931,2]
[421852430,1778226641000,-153.37,0.0002878,2]
[421852423,1778226641000,-1749.31042724,0.00028475,2]
[421852428,1778226641000,-153.37,0.0002873,30]
[421852426,1778226641000,-153.37,0.0002868,7]
[421852432,1778226641000,-153.37,0.0002883,7]
[421852515,1778226642000,-1749.31042724,0.00035544,2]
[421852514,1778226642000,-500.0,0.00035381,21]
[421852510,1778226642000,-222.0,0.00035099,30]
[421852513,1778226642000,-500.0,0.00035381,21]
[421852511,1778226642000,-182.0,0.00035099,30]
[421852505,1778226642000,-176.04,0.00034521,120]
[421852504,1778226642000,-1749.31042724,0.00034366,2]
[421852498,1778226642000,-222.0,0.00034099,30]
[421852508,1778226642000,-504.0,0.00035066,10]
[421852499,1778226642000,-182.0,0.00034099,30]
[421852506,1778226642000,-502.21907443,0.0003486,5]
[421852516,1778226642000,-520.75710577,0.00035616,7]
[421852526,1778226642000,-1002.75376496,0.00035616,7]
[421852509,1778226642000,-156.0,0.00035099,30]
[421852512,1778226642000,-1500.0,0.000352,7]
[421852520,1778226642000,-1002.75376496,0.00035616,7]
[421852528,1778226642000,-1002.75376496,0.00035616,7]
[421852522,1778226642000,-1002.75376496,0.00035616,7]
[421852527,1778226642000,-1002.75376496,0.00035616,7]
[421852517,1778226642000,-1002.75376496,0.00035616,7]
[421852523,1778226642000,-1002.75376496,0.00035616,7]
[421852524,1778226642000,-1002.75376496,0.00035616,7]
[421852521,1778226642000,-1002.75376496,0.00035616,7]
[421852519,1778226642000,-1002.75376496,0.00035616,7]
[421852501,1778226642000,-151.0,0.00034182,7]
[421852525,1778226642000,-1002.75376496,0.00035616,7]
[421852507,1778226642000,-503.40643898,0.00035033,5]
[421852500,1778226642000,-47709.4612729,0.00034113,2]
[421852495,1778226642000,-27165.0410208,0.00033433,2]
[421852497,1778226642000,-156.0,0.00034099,30]
[421852470,1778226642000,-182.0,0.00031099,30]
[421852480,1778226642000,-222.0,0.00032099,30]
[421852481,1778226642000,-153.0,0.00032099,30]
[421852478,1778226642000,-1749.31042724,0.00032009,2]
[421852477,1778226642000,-2500.0,0.00031999,2]
[421852474,1778226642000,-177.71357835,0.000315,2]
[421852469,1778226642000,-158.0,0.00031099,30]
[421852472,1778226642000,-203.79214431,0.000315,2]
[421852479,1778226642000,-156.0,0.00032099,30]
[421852473,1778226642000,-203.79214431,0.000315,2]
[421852471,1778226642000,-1000.0,0.000315,7]
[421852475,1778226642000,-177.71357835,0.000315,2]
[421852476,1778226642000,-504.0,0.00031542,6]
[421852502,1778226642000,-504.0,0.00034185,9]
[421852482,1778226642000,-164.46755806,0.00032099,30]
[421852483,1778226642000,-182.0,0.00032099,30]
[421852494,1778226642000,-190.8939483,0.00033433,2]
[421852529,1778226642000,-1002.75376496,0.00035616,7]
[421852486,1778226642000,-150.0,0.00032562,2]
[421852487,1778226642000,-282.607,0.00033001,2]
[421852490,1778226642000,-182.0,0.00033099,30]
[421852491,1778226642000,-1749.31042724,0.00033188,2]
[421852488,1778226642000,-156.0,0.00033099,30]
[421852489,1778226642000,-222.0,0.00033099,30]
[421852492,1778226642000,-2000.0,0.00033192,2]
[421852493,1778226642000,-504.0,0.00033304,8]
[421852485,1778226642000,-504.0,0.00032423,7]
[421852496,1778226642000,-1253.343859,0.00033769,2]
[421852484,1778226642000,-151.0,0.0003221,5]
[421852531,1778226642000,-1002.75376496,0.00035616,7]
[421852503,1778226642000,-150.0,0.0003419,2]
[421852534,1778226642000,-1002.75376496,0.00035616,7]
[421852564,1778226642000,-1000.0,0.00035616,10]
[421852567,1778226642000,-1000.0,0.00035616,10]
[421852568,1778226642000,-1000.0,0.00035616,10]
[421852579,1778226642000,-739.0,0.00035616,10]
[421852577,1778226642000,-1000.0,0.00035616,10]
[421852566,1778226642000,-1000.0,0.00035616,10]
[421852578,1778226642000,-1000.0,0.00035616,10]
[421852569,1778226642000,-1000.0,0.00035616,10]
[421852571,1778226642000,-1000.0,0.00035616,10]
[421852570,1778226642000,-1000.0,0.00035616,10]
[421852575,1778226642000,-1000.0,0.00035616,10]
[421852572,1778226642000,-1000.0,0.00035616,10]
[421852574,1778226642000,-1000.0,0.00035616,10]
[421852563,1778226642000,-1000.0,0.00035616,10]
[421852573,1778226642000,-1000.0,0.00035616,10]
[421852580,1778226642000,-1000.0,0.00035616,10]
[421852583,1778226642000,-1001.96437521,0.00035799,2]
[421852591,1778226642000,-275434.2483123,0.00035884,2]
[421852581,1778226642000,-361.51924495,0.00035617,7]
[421852582,1778226642000,-4021.0555384,0.0003567,2]
[421852584,1778226642000,-500.0,0.00035868,3]
[421852590,1778226642000,-439.52753128,0.00035868,3]
[421852586,1778226642000,-252.70337505,0.00035868,3]
[421852588,1778226642000,-439.52753129,0.00035868,3]
[421852585,1778226642000,-500.0,0.00035868,3]
[421852587,1778226642000,-500.0,0.00035868,3]
[421852589,1778226642000,-500.0,0.00035868,3]
[421852532,1778226642000,-1002.75376496,0.00035616,7]
[421852576,1778226642000,-1000.0,0.00035616,10]
[421852561,1778226642000,-1000.0,0.00035616,10]
[421852518,1778226642000,-1002.75376496,0.00035616,7]
[421852565,1778226642000,-1000.0,0.00035616,10]
[421852533,1778226642000,-1002.75376496,0.00035616,7]
[421852530,1778226642000,-1002.75376496,0.00035616,7]
[421852562,1778226642000,-1000.0,0.00035616,10]
[421852535,1778226642000,-1002.75376496,0.00035616,7]
[421852536,1778226642000,-1002.75376496,0.00035616,7]
[421852538,1778226642000,-1002.75376496,0.00035616,7]
[421852537,1778226642000,-1002.75376496,0.00035616,7]
[421852541,1778226642000,-1002.75376496,0.00035616,7]
[421852551,1778226642000,-1002.75376496,0.00035616,7]
[421852552,1778226642000,-1002.75376496,0.00035616,7]
[421852553,1778226642000,-1002.75376496,0.00035616,7]
[421852540,1778226642000,-1002.75376496,0.00035616,7]
[421852542,1778226642000,-1002.75376496,0.00035616,7]
[421852550,1778226642000,-1002.75376496,0.00035616,7]
[421852539,1778226642000,-1002.75376496,0.00035616,7]
[421852545,1778226642000,-1002.75376496,0.00035616,7]
[421852544,1778226642000,-1002.75376496,0.00035616,7]
[421852555,1778226642000,-1002.75376496,0.00035616,7]
[421852559,1778226642000,-1000.0,0.00035616,10]
[421852557,1778226642000,-1002.75376496,0.00035616,7]
[421852556,1778226642000,-1002.75376496,0.00035616,7]
[421852558,1778226642000,-1002.75376496,0.00035616,7]
[421852560,1778226642000,-1000.0,0.00035616,10]
[421852549,1778226642000,-1002.75376496,0.00035616,7]
[421852547,1778226642000,-1002.75376496,0.00035616,7]
[421852546,1778226642000,-1002.75376496,0.00035616,7]
[421852548,1778226642000,-1002.75376496,0.00035616,7]
[421852554,1778226642000,-1002.75376496,0.00035616,7]
[421852543,1778226642000,-1002.75376496,0.00035616,7]
[421852612,1778226643000,-1568.20362515,0.00036499,7]
[421852613,1778226643000,-174.61919142,0.00036499,7]
[421852618,1778226643000,-1439.14,0.00036699,2]
[421852615,1778226643000,-1001.96437518,0.00036499,2]
[421852621,1778226643000,-301.40443782,0.000368,120]
[421852620,1778226643000,-1001.96437518,0.00036733,2]
[421852614,1778226643000,-2080.17592889,0.00036499,7]
[421852624,1778226643000,-200.0,0.000369,13]
[421852610,1778226643000,-500.0,0.00036203,21]
[421852617,1778226643000,-285.69338951,0.00036538,2]
[421852622,1778226643000,-504.0,0.00036829,12]
[421852599,1778226643000,-1001.96437518,0.00036032,2]
[421852608,1778226643000,-285.69338951,0.00036197,2]
[421852603,1778226643000,-222.0,0.00036099,30]
[421852611,1778226643000,-1001.96437518,0.00036266,2]
[421852607,1778226643000,-151.0,0.00036153,30]
[421852605,1778226643000,-182.0,0.00036099,30]
[421852597,1778226643000,-1002.1704685,0.00036021,2]
[421852596,1778226643000,-12014.61704422,0.0003599,2]
[421852594,1778226643000,-504.0,0.00035947,11]
[421852593,1778226643000,-1363.21244519,0.00035914,2]
[421852592,1778226643000,-150.0,0.00035899,2]
[421852601,1778226643000,-156.0,0.00036099,30]
[421852625,1778226643000,-246.81,0.00036958,2]
[421852616,1778226643000,-152.0,0.000365,7]
[421852623,1778226643000,-285.69338951,0.00036878,2]
[421852626,1778226643000,-310351.58477052,0.00036962,2]
[421852658,1778226643000,-1322.10939884,0.00029553,2]
[421852656,1778226643000,-1897.46000004,0.00029553,2]
[421852652,1778226643000,-152.61,0.0002883,7]
[421852654,1778226643000,-1627.83228691,0.00029553,2]
[421852660,1778226643000,-982.07925712,0.00029553,2]
[421852649,1778226643000,-1141.95986912,0.00029553,2]
[421852646,1778226643000,-152.61,0.0002873,30]
[421852651,1778226643000,-522.62702627,0.00029553,2]
[421852650,1778226643000,-1220.52685329,0.00029553,2]
[421852648,1778226643000,-1689.74457912,0.00029553,2]
[421852647,1778226643000,-152.61,0.0002878,2]
[421852645,1778226643000,-152.61,0.0002868,7]
[421852642,1778226643000,-214.68143985,0.00037,7]
[421852643,1778226643000,-23318.66779657,0.00037025,2]
[421852641,1778226643000,-160.0,0.00037,63]
[421852640,1778226643000,-1001.96437518,0.00036966,2]
[421852639,1778226643000,-18330.72747531,0.00036962,2]
[421852638,1778226643000,-490.98111877,0.00036962,2]
[421852630,1778226643000,-5239.89376426,0.00036962,2]
[421852628,1778226643000,-3550.61769214,0.00036962,2]
[421852627,1778226643000,-10999.8781,0.00036962,2]
[421852629,1778226643000,-2943.95635846,0.00036962,2]
[421852644,1778226643000,-152.61,0.0002863,2]
[421852619,1778226643000,-1749.31042724,0.00036722,2]
[421852673,1778226644000,-0.02836558,0.00029553,2]
[421852674,1778226644000,-122.74562008,0.00029553,2]
[421852675,1778226644000,-343.10411232,0.00029553,2]
[421852687,1778226646000,-152.61,0.00029182,30]
[421852678,1778226646000,-441.53204277,0.00015001,2]
[421852680,1778226646000,-3063.098,0.00018001,2]
[421852679,1778226646000,-4977.92782725,0.00015001,2]
[421852681,1778226646000,-152.61,0.00028881,30]
[421852682,1778226646000,-152.61,0.00028931,2]
[421852685,1778226646000,-152.61,0.00029082,2]
[421852683,1778226646000,-152.61,0.00028981,7]
[421852677,1778226646000,-625.54012998,0.00015001,2]
[421852684,1778226646000,-152.61,0.00029031,30]
[421852686,1778226646000,-152.61,0.00029132,7]
[421852688,1778226646000,-152.7,0.00029232,2]
[421852696,1778226646000,-2000.0,0.00037025,85]
[421852691,1778226646000,-882.0,0.00036,2]
[421852705,1778226646000,-761.25738331,0.00037025,85]
[421852701,1778226646000,-817.6906042,0.00037025,85]
[421852692,1778226646000,-27960.6830069,0.00037025,2]
[421852698,1778226646000,-1182.3093958,0.00037025,85]
[421852697,1778226646000,-2000.0,0.00037025,85]
[421852699,1778226646000,-156.63,0.00024658,2]
[421852694,1778226646000,-200.0,0.00037025,2]
[421852689,1778226646000,-23739.91479695,0.00029553,2]
[421852690,1778226646000,-908.80829679,0.00035914,2]
[421852693,1778226646000,-500.0,0.00037025,21]
[421852695,1778226646000,-2000.0,0.00037025,85]
[421852703,1778226646000,-909.53467719,0.00037025,85]
[421852773,1778227311000,213.55,0.00029945,120]
[421852775,1778227352000,572.41805619,8e-05,2]
[421852783,1778227595000,658.220293,0.00024013,120]
[421852785,1778227644000,407.719856,0.00023691,120]
[421852787,1778227698000,203.859928,0.00022148,120]
[421852788,1778227745000,600.016304,0.0002303,120]
[421852808,1778227832000,-4775.8559646,0.00012,2]
[421852794,1778227832000,-159.78,0.00010785,2]
[421852803,1778227832000,-300.0,0.00011999,2]
[421852802,1778227832000,-300.0,0.00011999,2]
[421852798,1778227832000,-213.43092398,0.00011899,2]
[421852801,1778227832000,-150.0,0.00011999,2]
[421852796,1778227832000,-250.0,0.00011863,2]
[421852800,1778227832000,-1200.0,0.00011998,2]
[421852799,1778227832000,-1236.0,0.000119,2]
[421852805,1778227832000,-1065.16227668,0.00012,2]
[421852806,1778227832000,-574.81083747,0.00012,2]
[421852812,1778227832000,-14478.54283471,0.00012,2]
[421852811,1778227832000,-2616.10127688,0.00012,2]
[421852809,1778227832000,-388.8323745,0.00012,2]
[421852810,1778227832000,-770.68,0.00012,2]
[421852807,1778227832000,-458.44747329,0.00012,2]
[421852804,1778227832000,-2458.12599349,0.00012,2]
[421852843,1778227838000,-500.0,0.00013049,2]
[421852840,1778227838000,-370.73343885,0.00013049,2]
[421852834,1778227838000,-500.0,0.00013049,2]
[421852844,1778227838000,-500.0,0.00013049,2]
[421852832,1778227838000,-500.0,0.00013049,2]
[421852831,1778227838000,-500.0,0.00013049,2]
[421852825,1778227838000,-149203.45893673,0.00012,2]
[421852830,1778227838000,-500.0,0.00013049,2]
[421852828,1778227838000,-500.0,0.00013049,2]
[421852838,1778227838000,-500.0,0.00013049,2]
[421852827,1778227838000,-5668.55229987,0.00013,2]
[421852826,1778227838000,-2238.6261302,0.000129,2]
[421852824,1778227838000,-256.441215,0.00012,2]
[421852829,1778227838000,-500.0,0.00013049,2]